Department Family,Entity,Date,Expenses Type,Expense Area,Supplier,Transaction Number,Total
Department of Health,The Christie NHS Foundation Trust,11/07/2019,EPR Review,Capital,AIRE LOGIC LIMITED,0000618854,"80,600.00"
Department of Health,The Christie NHS Foundation Trust,11/07/2019,Drugs,Drugs,ALCURA UK LIMITED,0000619302,"95,826.99"
Department of Health,The Christie NHS Foundation Trust,04/07/2019,PET Scans- May 19,Christie Medical Physics,ALLIANCE MEDICAL LTD,0000618329,"170,585.00"
Department of Health,The Christie NHS Foundation Trust,25/07/2019,PET Scans- Jun 19,Christie Medical Physics,ALLIANCE MEDICAL LTD,0000618865,"143,880.00"
Department of Health,The Christie NHS Foundation Trust,25/07/2019,Drugs,Christie Medical Physics,ALLIANCE MEDICAL RADIOPHARMACY LIMITED,0000617906,"40,765.62"
Department of Health,The Christie NHS Foundation Trust,25/07/2019,Printing Jul 19-Sep 19,Corporate,APOGEE CORPORATION LTD,0000619075,"32,128.20"
Department of Health,The Christie NHS Foundation Trust,01/07/2019,Drugs,Drugs,BAXTER HEALTHCARE LTD,0000619646,"336,207.60"
Department of Health,The Christie NHS Foundation Trust,11/07/2019,Drugs,Drugs,BAXTER HEALTHCARE LTD,0000615873,"537,679.82"
Department of Health,The Christie NHS Foundation Trust,11/07/2019,Drugs,Drugs,BAXTER HEALTHCARE LTD,0000616752,"-68,014.08"
Department of Health,The Christie NHS Foundation Trust,11/07/2019,Drugs,Drugs,BAXTER HEALTHCARE LTD,0000617842,"478,209.66"
Department of Health,The Christie NHS Foundation Trust,11/07/2019,Drugs,Drugs,BAXTER HEALTHCARE LTD,0000618279,"566,457.89"
Department of Health,The Christie NHS Foundation Trust,11/07/2019,Drugs,Drugs,BAXTER HEALTHCARE LTD,0000618281,"445,540.01"
Department of Health,The Christie NHS Foundation Trust,11/07/2019,Drugs,Drugs,BAXTER HEALTHCARE LTD,0000618722,"554,397.91"
Department of Health,The Christie NHS Foundation Trust,11/07/2019,Drugs,Drugs,BAXTER HEALTHCARE LTD,0000618725,"521,278.38"
Department of Health,The Christie NHS Foundation Trust,18/07/2019,Drugs,Drugs,BAXTER HEALTHCARE LTD,0000616493,"513,308.05"
Department of Health,The Christie NHS Foundation Trust,18/07/2019,Drugs,Drugs,BAXTER HEALTHCARE LTD,0000618001,"541,538.84"
Department of Health,The Christie NHS Foundation Trust,18/07/2019,Medical Equipment,Network Services,BRAINLAB LTD,0000618992,"43,668.00"
Department of Health,The Christie NHS Foundation Trust,18/07/2019,Cabling Extensions,Digital Sevices,COMPLETE NETWORK SERVICES LTD,0000618757,"22,913.96"
Department of Health,The Christie NHS Foundation Trust,18/07/2019,Medical Equipment Maintenance Contract,Clinical Support & Specialist Surgery,CPP FACILITIES LLP,0000618208,"213,688.37"
Department of Health,The Christie NHS Foundation Trust,25/07/2019,Energy Contract Jun 19,Network Services,EDF ENERGY,0000619198,"48,782.36"
Department of Health,The Christie NHS Foundation Trust,25/07/2019,Energy Contract Jun 19,Network Services,EDF ENERGY,0000619199,"42,374.60"
Department of Health,The Christie NHS Foundation Trust,25/07/2019,The Christie NHS FT Balance,The Christie NHS FT Balance,FIDELITI LIMITED,0000618146,"25,504.18"
Department of Health,The Christie NHS Foundation Trust,04/07/2019,Executive Programs,Digital Sevices,GARTNER UK LIMITED,0000617277,"52,800.00"
Department of Health,The Christie NHS Foundation Trust,25/07/2019,Medical Equipment,Clinical Support & Specialist Surgery,GE MEDICAL SYSTEMS LIMITED,0000619897,"28,218.15"
Department of Health,The Christie NHS Foundation Trust,18/07/2019,Drugs,Drugs,HEALTHCARE AT HOME LTD,0000619067,"32,944.00"
Department of Health,The Christie NHS Foundation Trust,11/07/2019,Computer Equipment,Finance & Business Development,HP INC.UK LIMITED,0000618003,"36,300.06"
Department of Health,The Christie NHS Foundation Trust,04/07/2019,Paterson Development,Capital,INTERSERVE CONSTRUCTION LTD,0000617698,"824,659.75"
Department of Health,The Christie NHS Foundation Trust,04/07/2019,Paterson Development,Capital,INTERSERVE CONSTRUCTION LTD,0000618039,"54,538.25"
Department of Health,The Christie NHS Foundation Trust,25/07/2019,Paterson Development,Capital,INTERSERVE CONSTRUCTION LTD,0000620264,"971,218.21"
Department of Health,The Christie NHS Foundation Trust,11/07/2019,Drugs,Drugs,LLOYDSPHARMACY CLINICAL HOMECARE,0000618912,"53,370.10"
Department of Health,The Christie NHS Foundation Trust,18/07/2019,Computer Equipment,Finance & Business Development,LOVE MEDICAL LTD,0000617928,"76,029.60"
Department of Health,The Christie NHS Foundation Trust,18/07/2019,Paterson Development,Capital,MACE LTD,0000617343,"45,684.00"
Department of Health,The Christie NHS Foundation Trust,25/07/2019,Paterson Development,Capital,MACE LTD,0000618388,"46,980.00"
Department of Health,The Christie NHS Foundation Trust,25/07/2019,Paterson Development,Capital,MACE LTD,0000618400,"31,185.11"
Department of Health,The Christie NHS Foundation Trust,04/07/2019,PET Scans May 19,Christie Medical Physics,MANCHESTER UNIVERSITY NHS FT,0000617834,"94,218.00"
Department of Health,The Christie NHS Foundation Trust,18/07/2019,PET Scans Jun 19,Christie Medical Physics,MANCHESTER UNIVERSITY NHS FT,0000619564,"91,920.00"
Department of Health,The Christie NHS Foundation Trust,11/07/2019,Insurance,Capital,MASON OWEN FINANCIAL SERVICES LIMITED,0000618137,"158,287.88"
Department of Health,The Christie NHS Foundation Trust,18/07/2019,Macmillan Service May & Jun 19,Network Services,MID CHESHIRE HOSPITALS NHS FT,0000616962,"91,408.74"
Department of Health,The Christie NHS Foundation Trust,15/07/2019,Blood Products,Network Services,NHS BLOOD AND TRANSPLANT,0000620007,"172,291.34"
Department of Health,The Christie NHS Foundation Trust,15/07/2019,NHS Litigation (NHSLA),Finance & Business Development,NHS LITIGATION AUTHORITY,0000620006,"111,326.40"
Department of Health,The Christie NHS Foundation Trust,11/07/2019,Stock for all Wards & Departments,All Wards and Departments,NHS SUPPLY CHAIN,0000619231,"50,049.25"
Department of Health,The Christie NHS Foundation Trust,11/07/2019,Stock for all Wards & Departments,All Wards and Departments,NHS SUPPLY CHAIN,0000618595,"111,710.67"
Department of Health,The Christie NHS Foundation Trust,11/07/2019,Stock for all Wards & Departments,All Wards and Departments,NHS SUPPLY CHAIN,0000617735,"101,543.85"
Department of Health,The Christie NHS Foundation Trust,18/07/2019,Stock for all Wards & Departments,All Wards and Departments,NHS SUPPLY CHAIN,0000619230,"61,157.37"
Department of Health,The Christie NHS Foundation Trust,18/07/2019,Stock for all Wards & Departments,All Wards and Departments,NHS SUPPLY CHAIN,0000618303,"48,548.62"
Department of Health,The Christie NHS Foundation Trust,25/07/2019,Stock for all Wards & Departments,All Wards and Departments,NHS SUPPLY CHAIN,0000619471,"61,941.59"
Department of Health,The Christie NHS Foundation Trust,18/07/2019,Audit Services,Finance & Business Development,ROYAL LIVERPOOL & BROADGREEN NHS TRUST,0000619124,"25,593.75"
Department of Health,The Christie NHS Foundation Trust,25/07/2019,Maintenance,Estates & Facilities,SCHNEIDER ELECTRIC LTD,0000618990,"61,978.00"
Department of Health,The Christie NHS Foundation Trust,18/07/2019,Software Licences,23 Digital Services,SOFTCAT PLC,0000611569,"47,985.70"
Department of Health,The Christie NHS Foundation Trust,11/07/2019,Proton Beam Development (PBT),Capital,SYSTEM C HEALTHCARE,0000617211,"22,779.00"
Department of Health,The Christie NHS Foundation Trust,25/07/2019,Proton Beam Development (PBT),Capital,SYSTEM C HEALTHCARE,0000617228,"24,485.11"
Department of Health,The Christie NHS Foundation Trust,25/07/2019,Paterson Development,Capital,TCLARKE CONTRACTING LTD,0000618792,"30,127.86"
Department of Health,The Christie NHS Foundation Trust,11/07/2019,Drugs,Drugs,THE CHRISTIE CLINIC (HCA),0000616269,"34,979.11"
Department of Health,The Christie NHS Foundation Trust,11/07/2019,Christie @ Oldham - Apr 19 to Jun 19,Estates & Facilities,THE PENNINE ACUTE HOSPITAL NHS TRUST,0000617731,"38,140.50"
Department of Health,The Christie NHS Foundation Trust,18/07/2019,Energy Contrct- May 19,Estates & Facilities,VEOLIA ENERGY &UTILITY SERVICES UK PLC,0000618316,"200,076.53"
Department of Health,The Christie NHS Foundation Trust,25/07/2019,Energy Contrct- Jun 19,Estates & Facilities,VEOLIA ENERGY &UTILITY SERVICES UK PLC,0000619439,"191,062.00"
